bitfinex/quotes_ETHUSD_20250930
["timestamp","ask_amount","ask_price","bid_price","bid_amount"]
[1759254803733,0.2365,4106.9,4106.8,10.7236]
[1759254804102,0.1865,4106.9,4106.8,10.7236]
[1759254805003,3.05422658,4106.9,4106.8,7.1216]
[1759254805210,3.05422658,4106.9,4106.8,9.9306]
[1759254805425,3.05422658,4106.9,4106.8,10.7226]
[1759254805734,3.05522658,4106.9,4106.8,7.0]
[1759254805932,3.17682658,4106.9,4106.8,9.809]
[1759254810144,3.17682658,4106.9,4106.8,2.809]
[1759254811809,3.17682658,4106.9,4106.8,3.709]
[1759254812005,5.57682658,4106.9,4106.8,0.9]
[1759254812222,5.57682658,4106.9,4106.8,2.787]
[1759254812521,5.57682658,4106.9,4106.8,1.887]
[1759254812826,3.17682658,4106.9,4106.8,1.887]
[1759254813405,0.3091,4106.9,4106.8,1.887]
[1759254813611,2.74402658,4106.9,4106.8,1.887]
[1759254815140,3.17682658,4106.9,4106.8,1.887]
[1759254815716,0.3091,4106.9,4106.8,1.887]
[1759254816122,0.001,4106.9,4106.8,2.3587]
[1759254816444,0.001,4106.9,4106.8,1.887]
[1759254821987,0.001,4106.9,4106.8,2.3288]
[1759254822271,0.001,4106.9,4106.8,2.59224985]
[1759254822582,0.001,4106.9,4106.8,1.887]
[1759254823347,0.001,4106.9,4106.8,4.32198587]
[1759254823757,0.001,4106.9,4106.8,4.34633572]
[1759254824076,0.001,4106.9,4106.8,6.51173915]
[1759254824377,0.001,4106.9,4106.8,4.05240343]
[1759254824578,0.001,4106.9,4106.8,6.51173915]
[1759254824877,0.001,4106.9,4106.8,6.4873893]
[1759254825382,0.001,4106.9,4106.8,4.05240343]
[1759254825562,0.001,4106.9,4106.8,2.681]
[1759254825949,0.001,4106.9,4106.8,3.3619]
[1759254826150,0.001,4106.9,4106.8,5.79688587]
[1759254826645,0.001,4106.9,4106.8,5.91848587]
[1759254827455,0.001,4106.9,4106.8,3.4835]
[1759254827652,0.001,4106.9,4106.8,6.26703587]
[1759254827877,0.001,4106.9,4106.8,7.16703587]
[1759254830350,0.001,4106.9,4106.8,4.05115]
[1759254830551,0.001,4106.9,4106.8,6.48613587]
[1759254830756,0.001,4106.9,4106.8,6.92793587]
[1759254831471,0.001,4106.9,4106.8,7.16703587]
[1759254833785,0.001,4106.9,4106.8,6.92793587]
[1759254833966,0.001,4106.9,4106.8,7.16703587]
[1759254836366,0.001,4106.9,4106.8,2.04255]
[1759254836567,0.001,4106.9,4106.8,6.93698587]
[1759254837367,0.2364,4106.9,4106.8,6.93698587]
[1759254838381,0.001,4106.9,4106.8,6.93698587]
[1759254839097,0.001,4106.9,4106.8,7.61788587]
[1759254839792,0.001,4106.9,4106.8,7.37878587]
[1759254840294,0.001,4106.9,4106.8,8.38428042]
[1759254840505,0.001,4106.9,4106.8,8.62338042]
[1759254841571,0.001,4106.9,4106.8,8.38428042]
[1759254841994,0.001,4106.9,4106.8,5.50749455]
[1759254842314,0.001,4106.9,4106.8,6.93698587]
[1759254842515,0.2364,4106.9,4106.8,6.93698587]
[1759254843014,0.2364,4106.9,4106.8,4.501]
[1759254843217,0.6645,4106.9,4106.8,4.501]
[1759254843713,0.6645,4106.9,4106.8,6.93598587]
[1759254843714,0.001,4106.9,4106.8,6.93598587]
[1759254843900,0.001,4106.9,4106.8,8.55419485]
[1759254844723,0.001,4106.9,4106.8,8.31509485]
[1759254844927,0.001,4106.9,4106.8,7.37778587]
[1759254846010,0.001,4106.9,4106.8,6.93598587]
[1759254846220,0.001,4106.9,4106.8,7.37778587]
[1759254846425,0.001,4106.9,4106.8,4.6226]
[1759254846592,0.2364,4106.9,4106.8,4.6226]
[1759254847416,0.7861,4106.9,4106.8,0.902]
[1759254847722,3.22102658,4106.9,4106.8,3.709]
[1759254849417,3.22102658,4106.9,4106.8,0.902]
[1759254849603,3.22102658,4106.9,4106.8,3.709]
[1759254849913,3.22102658,4106.9,4106.8,2.809]
[1759254850808,2.43504517,4106.7,4106.6,0.002]
[1759254851003,2.43504517,4106.7,4106.6,1.571]
[1759254851198,3.10814517,4106.7,4106.6,1.571]
[1759254855221,3.10814517,4106.7,4106.6,2.471]
[1759254856618,2.67534517,4106.7,4106.6,2.471]
[1759254858140,0.2403,4106.7,4106.6,2.471]
[1759254858315,2.67534517,4106.7,4106.6,2.471]
[1759254859394,2.43504517,4106.7,4106.6,2.471]
[1759254859594,2.66054517,4106.7,4106.6,2.471]
[1759254860635,0.2255,4106.7,4106.6,2.471]
[1759254861425,0.001,4106.9,4106.6,2.471]
[1759254861632,2.43593366,4106.9,4106.6,2.471]
[1759254861830,2.43501904,4106.8,4106.6,2.471]
[1759254862008,2.66051904,4106.8,4106.6,2.471]
[1759254862204,0.1216,4106.7,4106.6,2.471]
[1759254862429,0.3471,4106.7,4106.6,2.471]
[1759254863728,0.1216,4106.7,4106.6,2.471]
[1759254864131,0.001,4106.9,4106.8,3.22698587]
[1759254864338,0.001,4106.9,4106.8,3.32748712]
[1759254864527,0.001,4106.9,4106.8,1.5543514]
[1759254867312,0.001,4106.9,4106.8,3.98933727]
[1759254868639,0.001,4106.9,4106.8,1.5543514]
[1759254868839,0.001,4106.9,4106.8,3.98933727]
[1759254869741,0.001,4106.9,4106.8,1.5543514]
[1759254869939,0.2265,4106.9,4106.8,2.8821514]
[1759254871116,0.001,4106.9,4106.8,2.8821514]
[1759254872446,2.66142658,4106.9,4106.8,0.0761514]
[1759254872740,3.09422658,4106.9,4106.8,2.8811514]
[1759254873640,0.2265,4106.9,4106.8,2.8811514]
[1759254874147,0.3481,4106.9,4106.8,2.8811514]
[1759254874723,0.1226,4106.9,4106.8,2.8811514]
[1759254874927,0.1226,4106.9,4106.8,3.5673514]
[1759254875360,0.1226,4106.9,4106.8,2.8811514]
[1759254876346,0.1226,4106.9,4106.8,3.3411514]
[1759254876646,0.001,4106.9,4106.8,4.1331514]
[1759254876943,0.001,4106.9,4106.8,3.6731514]
[1759254877131,0.001,4106.9,4106.8,4.1331514]
[1759254877318,0.001,4106.9,4106.8,4.3593514]
[1759254877519,0.001,4106.9,4106.8,7.5761369]
[1759254883238,0.001,4106.9,4106.8,7.5761369]
[1759254887759,0.001,4106.9,4106.8,7.6977369]
[1759254888444,0.001,4106.9,4106.8,4.8927369]
[1759254888649,0.001,4106.9,4106.8,7.6967369]
[1759254888848,0.001,4106.9,4106.8,0.0761514]
[1759254889041,0.2391,4106.9,4106.8,2.8801514]
[1759254889423,0.2391,4106.9,4106.8,0.8681514]
[1759254889628,0.2391,4106.9,4106.8,3.6721514]
[1759254890223,0.2391,4106.9,4106.8,6.10713727]
[1759254890429,0.001,4106.9,4106.8,6.10713727]
[1759254893960,0.001,4106.9,4106.8,6.79833727]
[1759254894206,0.001,4106.9,4106.8,6.10713727]
[1759254894367,0.001,4106.9,4106.8,3.6711514]
[1759254894988,0.2391,4106.9,4106.8,3.6711514]
[1759254895386,0.2391,4106.9,4106.8,0.0761514]
[1759254895387,0.6719,4106.9,4106.8,0.0761514]
[1759254895586,0.6719,4106.9,4106.8,2.8791514]
[1759254895774,0.2391,4106.9,4106.8,2.8791514]
[1759254895980,0.2391,4106.9,4106.8,2.8811514]
[1759254897186,0.6719,4106.9,4106.8,0.0781514]
[1759254897387,3.10682658,4106.9,4106.8,2.8811514]
[1759254897587,0.6719,4106.9,4106.8,2.8811514]
[1759254898155,0.6719,4106.9,4106.8,2.805]
[1759254900385,0.2391,4106.9,4106.8,2.805]
[1759254901383,0.001,4106.9,4106.8,2.805]
[1759254905197,0.2391,4106.9,4106.8,2.805]
[1759254905998,0.2391,4106.9,4106.8,0.002]
[1759254905999,3.10682658,4106.9,4106.8,0.002]
[1759254906195,3.10682658,4106.9,4106.8,2.804]
[1759254906778,3.10682658,4106.9,4106.8,0.002]
[1759254906977,3.63066835,4106.9,4106.8,0.002]
[1759254907398,6.03066835,4106.9,4106.8,0.002]
[1759254908099,6.1282273,4106.9,4106.8,0.002]
[1759254910417,8.9302273,4106.9,4106.8,0.002]
[1759254913506,15.9502273,4106.9,4106.8,0.002]
[1759254914916,2.4,4106.8,4106.6,1e-08]
[1759254915231,10.47356575,4106.7,4106.6,1e-08]
[1759254915523,6.02898694,4106.7,4106.6,1e-08]
[1759254916014,6.15058694,4106.7,4106.6,1e-08]
[1759254917192,6.24815731,4106.7,4106.6,1e-08]
[1759254918499,9.05015731,4106.7,4106.6,1e-08]
[1759254920448,2.4354603,4106.0,4104.4,0.002]
[1759254920636,2.43589754,4105.3,4104.5,0.4627]
[1759254920924,8.07463351,4104.9,4104.5,0.4627]
[1759254921110,8.07463351,4104.9,4104.8,0.4627]
[1759254921312,2.43611293,4104.9,4104.8,0.4627]
[1759254921510,2.43611293,4104.9,4104.8,0.6989]
[1759254922023,2.43611293,4104.9,4104.8,0.002]
[1759254922939,2.43611293,4104.9,4104.8,0.4627]
[1759254923222,2.43611293,4104.9,4104.8,0.6989]
[1759254923913,2.43629099,4104.6,4104.5,1e-08]
[1759254924106,10.47481157,4104.6,4104.5,1e-08]
[1759254924326,4.83629099,4104.6,4104.5,1e-08]
[1759254924535,10.47481157,4104.6,4104.5,1e-08]
[1759254924937,8.07481157,4104.6,4104.5,1e-08]
[1759254925145,5.63852058,4104.9,4104.5,1e-08]
[1759254925461,2.43629099,4104.6,4104.5,0.69690001]
[1759254925644,8.07464583,4104.9,4104.5,1e-08]
[1759254925845,2.43623163,4104.7,4104.6,0.6969]
[1759254926047,2.43629099,4104.6,4104.5,1e-08]
[1759254926563,8.07481157,4104.6,4104.5,1e-08]
[1759254929064,2.43629099,4104.6,4104.5,0.23620001]
[1759254929221,4.83617279,4104.8,4104.5,0.23620001]
[1759254929222,2.4,4104.8,4104.5,0.23620001]
[1759254929423,4.83619221,4104.8,4104.5,0.23620001]
[1759254929628,5.23811346,4104.9,4104.5,0.23620001]
[1759254929829,2.43629099,4104.6,4104.5,0.69690001]
[1759254930028,2.43623831,4104.7,4104.5,0.69690001]
[1759254930226,2.4360592,4105.0,4104.5,1e-08]
[1759254930455,0.1216,4104.6,4104.5,1e-08]
[1759254930959,0.1216,4104.6,4104.5,0.69690001]
[1759254932561,2.55789099,4104.6,4104.5,0.69690001]
[1759254933268,0.1216,4104.6,4104.5,0.69690001]
[1759254935555,0.1216,4104.6,4104.5,3.49890001]
[1759254935756,2.43564913,4105.7,4104.7,2.43623163]
[1759254935959,0.1216,4105.2,4104.8,3.1574258]
[1759254936269,0.001,4106.0,4105.0,0.792]
[1759254936469,0.001,4106.0,4105.1,3.13288965]
[1759254936687,0.001,4106.0,4105.6,2.43569758]
[1759254936844,0.001,4106.0,4105.9,3.22751961]
[1759254937045,0.001,4106.5,4106.0,0.792]
[1759254937266,0.001,4106.5,4106.0,1.4889]
[1759254937442,0.001,4106.5,4106.1,0.6969]
[1759254937644,0.001,4106.5,4106.2,2.802]
[1759254938072,0.001,4106.5,4106.3,0.6969]
[1759254938572,0.001,4106.5,4106.4,0.4607]
[1759254938867,0.001,4106.5,4106.2,2.802]
[1759254938868,5.87222058,4106.5,4106.2,2.802]
[1759254939040,0.001,4106.5,4106.2,3.2627]
[1759254939242,0.001,4106.5,4106.2,0.4607]
[1759254939653,2.43619347,4106.5,4106.2,0.4607]
[1759254939849,0.001,4106.5,4106.2,0.4607]
[1759254940049,0.001,4106.5,4106.3,0.6969]
[1759254940455,0.001,4106.5,4106.4,0.6969]
[1759254944787,0.001,4106.5,4106.4,0.4607]
[1759254945091,0.001,4106.5,4106.4,0.6895]
[1759254945262,0.001,4106.5,4106.1,2.801]
[1759254945458,0.001,4106.5,4106.2,0.4349]
[1759254945653,0.001,4106.5,4106.2,0.6637]
[1759254945969,0.001,4106.5,4106.3,0.4349]
[1759254946391,0.1226,4106.5,4106.3,0.4349]
[1759254948086,0.1226,4106.5,4106.3,0.6637]
[1759254948289,0.1226,4106.5,4106.4,0.4349]
[1759254948690,0.1226,4106.5,4106.1,2.801]
[1759254948876,0.1226,4106.5,4106.2,0.6637]
[1759254949389,0.1226,4106.5,4106.3,0.6637]
[1759254950290,0.1226,4106.5,4106.3,0.4349]
[1759254951390,2.66153584,4106.4,4105.9,0.4349]
[1759254951691,0.1216,4106.2,4106.0,2.8]
[1759254952891,0.1216,4106.2,4106.0,3.2349]
[1759254953094,0.1216,4106.2,4106.1,0.6637]
[1759254953592,0.1216,4106.2,4106.0,2.8]
[1759254953805,0.1216,4106.2,4106.0,3.2349]
[1759254954171,0.1216,4106.2,4106.0,2.8]
[1759254954389,0.1216,4106.2,4106.1,0.4349]
[1759254956807,0.1216,4106.2,4106.1,0.6637]
[1759254958088,0.1216,4106.2,4106.1,0.4349]
[1759254958280,0.1226,4106.5,4106.1,1.034424]
[1759254958481,0.001,4106.5,4106.2,3.89100254]
[1759254958680,0.001,4106.5,4106.3,3.4627]
[1759254959311,0.001,4106.5,4106.4,0.6637]
[1759254959900,0.001,4106.5,4104.7,0.4349]
[1759254960095,0.6601,4106.4,4105.2,0.2288]
[1759254960289,0.2263,4106.4,4105.3,0.4349]
[1759254960491,2.4354111,4106.1,4105.4,0.2288]
[1759254960812,2.4354111,4106.1,4105.5,0.4349]
[1759254961512,2.4353366,4106.3,4105.6,2.799]
[1759254961914,2.43534286,4106.2,4105.6,3.0278]
[1759254962118,2.43540812,4106.1,4105.6,3.0278]
[1759254962409,2.43530267,4106.3,4105.7,3.2339]
[1759254962611,2.43540398,4106.1,4105.7,3.2339]
[1759254962786,2.4353841,4106.2,4105.7,3.2339]
[1759254962982,0.2263,4106.4,4105.7,3.4627]
[1759254963214,2.43537791,4106.2,4105.7,3.4627]
[1759254963512,2.43541628,4106.1,4105.8,3.2339]
[1759254963829,2.401,4106.5,4105.8,3.2339]
[1759254963830,0.001,4106.5,4105.9,0.6637]
[1759254963986,2.43538379,4106.2,4105.8,2.799]
[1759254964486,2.43538379,4106.2,4105.9,0.4349]
[1759254964685,2.43540475,4106.1,4105.8,2.799]
[1759254965111,2.43547603,4106.0,4105.8,2.799]
[1759254965324,2.6617208,4106.1,4105.8,2.799]
[1759254966113,0.2263,4106.1,4105.8,2.799]
[1759254966409,2.6617041,4106.1,4105.8,2.799]
[1759254967026,2.43548003,4106.0,4105.8,2.799]
[1759254967186,2.6617153,4106.1,4105.9,2.799]
[1759254967387,2.4354603,4106.0,4105.9,2.799]
[1759254967729,0.2263,4106.0,4105.6,0.002]
[1759254967931,2.66187032,4105.9,4105.7,2.799]
[1759254968633,2.66187893,4105.8,4105.7,2.799]
[1759254968920,0.2263,4105.8,4105.7,2.799]
[1759254969517,2.43563825,4105.7,4105.6,0.002]
[1759254969715,2.43553672,4105.9,4105.6,2.801]
[1759254969915,0.3479,4105.7,4105.6,2.801]
[1759254970120,0.1216,4105.7,4105.6,2.801]
[1759254970907,0.1216,4105.7,4105.6,3.5011]
[1759254971410,0.1216,4105.7,4105.6,3.2608]
[1759254971820,0.1216,4105.9,4105.6,3.5011]
[1759254972013,0.1216,4105.9,4105.7,0.7001]
[1759254972437,0.52415885,4106.5,4105.8,0.7001]
[1759254972635,0.001,4106.5,4105.9,4.2901]
[1759254972806,0.001,4106.5,4106.0,0.7244546]
[1759254973136,0.001,4106.5,4106.4,0.792]
[1759254973332,0.001,4106.5,4106.4,3.59]
[1759254973639,0.001,4106.5,4106.4,4.2901]
[1759254973838,0.001,4106.5,4106.4,2.798]
[1759254976106,0.6717,4106.5,4105.6,0.002]
[1759254976448,2.43535328,4106.2,4105.7,2.798]
[1759254976609,0.6717,4106.5,4105.7,2.798]
[1759254976610,2.43557893,4105.8,4105.7,2.798]
[1759254976808,3.10627893,4105.8,4105.7,2.798]
[1759254977353,2.43563825,4105.7,4105.6,0.002]
[1759254977662,2.86943825,4105.7,4105.6,0.002]
[1759254977937,3.10633825,4105.7,4105.6,0.002]
[1759254979541,2.67253825,4105.7,4105.6,0.002]
[1759254980636,3.10633825,4105.7,4105.6,0.002]
[1759254982625,3.22793825,4105.7,4105.6,0.002]
[1759254984040,12.15310584,4105.7,4105.6,0.002]
[1759254984250,12.67713921,4105.7,4105.6,0.002]
[1759254986761,15.47513921,4105.7,4105.6,0.002]
[1759254986958,22.49513921,4105.7,4105.6,0.002]
[1759254989183,22.06133921,4105.7,4105.6,0.002]
[1759254989801,22.49513921,4105.7,4105.6,0.002]
[1759254990678,22.06133921,4105.7,4105.6,0.002]
[1759254990883,15.53617162,4105.7,4105.6,0.002]
[1759254991061,15.01213825,4105.7,4105.6,0.002]
[1759254991259,7.1416,4105.7,4105.6,0.4748]
[1759254991480,7.1416,4105.7,4105.6,0.7187]
[1759254992290,9.57723825,4105.7,4105.6,0.7187]
[1759254992591,9.57723825,4105.7,4105.6,0.002]
[1759254992592,7.1416,4105.7,4105.6,0.002]
[1759254993172,9.57723825,4105.7,4105.6,0.002]
[1759254993371,7.1416,4105.7,4105.6,0.002]
[1759254993884,9.57723825,4105.7,4105.6,0.002]
[1759254994787,7.1416,4105.7,4105.6,0.7187]
[1759254995473,9.57723825,4105.7,4105.6,0.002]
[1759254996191,9.80873825,4105.7,4105.6,0.002]
[1759254996799,9.57723825,4105.7,4105.6,0.002]
[1759254998162,9.80873825,4105.7,4105.6,0.002]
[1759254999296,9.57723825,4105.7,4105.6,0.002]
[1759254999498,9.80873825,4105.7,4105.6,0.002]
[1759255000071,9.57723825,4105.7,4105.6,0.002]
[1759255000277,9.80873825,4105.7,4105.6,0.002]
[1759255001017,12.64943825,4105.7,4105.6,0.002]
[1759255001176,13.17296943,4105.7,4105.6,0.002]
[1759255001700,12.73916943,4105.7,4105.6,0.002]
[1759255002426,15.53616943,4105.7,4105.6,0.002]
[1759255002635,22.49513702,4105.7,4105.6,0.002]
[1759255005301,15.53616943,4105.7,4105.6,0.002]
[1759255006831,15.96996943,4105.7,4105.6,0.002]
[1759255007524,16.83754252,4105.7,4105.6,0.002]
[1759255007720,15.96996943,4105.7,4105.6,0.002]
[1759255009542,17.27132906,4105.7,4105.6,0.002]
[1759255012420,15.96996943,4105.7,4105.6,0.002]
[1759255013040,16.06756765,4105.7,4105.6,0.002]
[1759255013521,9.04756765,4105.7,4105.6,0.002]
[1759255014221,8.61376765,4105.7,4105.6,0.002]
[1759255014961,12.10353524,4105.7,4105.6,0.002]
[1759255015140,15.77281076,4105.7,4105.6,0.002]
[1759255015457,14.90053524,4105.7,4105.6,0.002]
[1759255015651,15.13893524,4105.7,4105.6,0.002]
[1759255018329,14.02145215,4105.7,4105.6,0.002]
[1759255018566,14.25985215,4105.7,4105.6,0.002]
[1759255018764,14.02145215,4105.7,4105.6,0.002]
[1759255018932,14.8937726,4105.7,4105.6,0.4693]
[1759255019338,14.8937726,4105.7,4105.6,0.002]
[1759255020366,13.92385393,4105.7,4105.6,0.695]
[1759255021165,8.27776943,4105.7,4105.6,0.002]
[1759255021358,13.92385393,4105.7,4105.6,0.695]
[1759255023072,13.92385393,4105.7,4105.6,0.4693]
[1759255023379,8.96661568,4105.7,4105.6,0.695]
[1759255023581,13.80225393,4105.7,4105.6,0.695]
[1759255025757,13.80225393,4105.7,4105.6,0.002]
[1759255025957,14.04065393,4105.7,4105.6,0.002]
[1759255026365,11.36661568,4105.7,4105.6,0.002]
[1759255026565,18.38661568,4105.7,4105.6,0.4693]
[1759255026960,20.82225393,4105.7,4105.6,0.4693]
[1759255028762,18.38661568,4105.7,4105.6,0.4693]
[1759255029365,7.54353118,4105.7,4105.6,0.695]
[1759255029565,7.02,4105.7,4105.6,0.695]
[1759255030153,0.52453118,4106.0,4105.6,0.695]
[1759255030154,7.02,4105.9,4105.6,0.695]
[1759255030449,0.52453118,4106.0,4105.7,0.693]
[1759255030450,7.54453118,4106.0,4105.7,0.693]
[1759255030670,0.52353118,4105.9,4105.8,0.693]
[1759255030866,0.52353118,4105.9,4105.6,0.002]
[1759255031073,7.021,4106.0,4105.6,0.002]
[1759255031450,7.021,4106.0,4105.7,0.6973]
[1759255031661,7.021,4106.0,4105.8,0.6973]
[1759255031870,0.001,4106.0,4105.9,0.6973]
[1759255032068,0.001,4106.0,4105.9,8.77890411]
[1759255032281,0.001,4106.0,4105.9,10.97215798]
[1759255033195,0.001,4106.0,4105.9,11.09375798]
[1759255043976,0.001,4106.0,4105.9,13.88775798]
[1759255044380,0.001,4106.0,4105.9,8.24167348]
[1759255044589,0.001,4106.0,4105.9,13.88775798]
[1759255046605,0.001,4106.0,4105.9,16.28775798]
[1759255047584,0.001,4106.0,4105.9,21.93384248]
[1759255048204,0.001,4106.0,4105.9,16.28775798]
[1759255052191,0.001,4106.0,4105.9,13.49375798]
[1759255052385,0.001,4106.0,4105.9,16.28675798]
[1759255056229,0.001,4106.0,4105.9,16.04945798]
[1759255056428,0.001,4106.0,4105.9,16.28905798]
[1759255058823,0.001,4106.0,4105.9,23.28905798]
[1759255060140,0.001,4106.0,4105.9,23.04945798]
[1759255060510,0.001,4106.0,4105.9,23.28905798]
[1759255061235,0.001,4106.0,4105.9,23.04945798]
[1759255061408,0.001,4106.0,4105.9,23.29915798]
[1759255062538,0.001,4106.0,4105.9,23.27085798]
[1759255064935,0.001,4106.0,4105.9,28.91694248]
[1759255065137,0.001,4106.5,4106.4,3.22722306]
[1759255065312,0.001,4106.5,4106.4,12.1339821]
[1759255065506,0.001,4106.5,4106.4,12.79202987]
[1759255066238,0.001,4106.5,4106.4,12.54232987]
[1759255066439,0.001,4106.5,4106.4,12.79202987]
[1759255068307,0.001,4106.6,4106.5,5.62716376]
[1759255068530,0.001,4106.6,4106.5,7.14989638]
[1759255068734,0.001,4106.6,4106.5,7.83229638]
[1759255070242,0.001,4106.6,4106.5,7.14989638]
[1759255070445,0.001,4106.6,4106.5,14.58259638]
[1759255070616,0.001,4106.6,4106.5,14.83229638]
[1759255071332,0.001,4106.6,4106.5,14.14989638]
[1759255071643,0.001,4106.6,4106.5,16.94089638]
[1759255072044,0.2458,4106.6,4106.5,14.14989638]
[1759255072222,0.2458,4106.6,4106.5,16.94089638]
[1759255073333,0.2458,4106.6,4106.5,17.39598088]
[1759255073532,0.2458,4106.6,4106.5,20.18698088]
[1759255075026,0.001,4106.6,4106.5,20.18698088]
[1759255075434,0.2458,4106.6,4106.5,20.18698088]
[1759255076235,0.2458,4106.6,4106.5,14.54089638]
[1759255076447,0.2458,4106.6,4106.5,20.18698088]
[1759255076654,0.6796,4106.6,4106.5,10.95789638]
[1759255076959,0.6796,4106.6,4106.5,12.22616376]
[1759255077456,0.6796,4106.6,4106.5,13.01816376]
[1759255077657,0.2458,4106.6,4106.5,13.01816376]
[1759255078226,0.6796,4106.6,4106.5,13.01816376]
[1759255078956,0.6796,4106.6,4106.5,10.22716376]
[1759255079257,0.2458,4106.6,4106.5,13.01816376]
[1759255079558,0.6796,4106.6,4106.5,13.01816376]
[1759255080564,0.6796,4106.6,4106.5,9.791]
[1759255080738,0.2458,4106.6,4106.5,13.01816376]
[1759255080946,0.001,4106.6,4106.5,13.13976376]
[1759255081156,0.001,4106.6,4106.5,14.6972665]
[1759255081465,0.001,4106.6,4106.5,13.13976376]
[1759255082029,0.2458,4106.6,4106.5,13.13976376]
[1759255085468,0.2458,4106.6,4106.5,7.0]
[1759255085469,0.6796,4106.6,4106.5,7.0]
[1759255085633,0.6796,4106.6,4106.5,9.79]
[1759255090148,0.6796,4106.6,4106.5,12.22516376]
[1759255091578,0.001,4106.6,4106.5,13.01716376]
[1759255093556,0.001,4106.6,4106.5,13.47196376]
[1759255093756,0.2429,4106.6,4106.5,13.01716376]
[1759255094975,0.2429,4106.6,4106.5,6.01716376]
[1759255097178,0.001,4106.6,4106.5,6.01716376]
[1759255097982,0.2429,4106.6,4106.5,6.01716376]
[1759255098197,0.2429,4106.6,4106.4,0.1216]
[1759255098380,0.2429,4106.6,4106.0,0.002]
[1759255098381,0.7973,4106.5,4106.0,0.002]
[1759255098697,0.6757,4106.5,4106.1,2.79]
[1759255098894,0.6757,4106.4,4106.1,2.79]
[1759255099078,0.1216,4106.2,4106.1,2.79]
[1759255099257,0.7973,4106.2,4106.1,2.79]
[1759255099986,0.7973,4106.2,4106.0,0.002]
[1759255100284,0.7973,4106.2,4106.1,2.79]
[1759255100485,0.3635,4106.2,4106.1,2.79]
[1759255100822,0.1216,4106.2,4106.1,2.79]
[1759255101286,0.3635,4106.2,4106.1,2.79]
[1759255104589,0.7973,4106.2,4106.1,2.79]
[1759255105771,0.7973,4106.2,4106.0,0.002]
[1759255106089,0.3635,4106.2,4106.1,2.79]
[1759255106700,0.7973,4106.2,4106.1,2.79]
[1759255106876,0.7973,4106.2,4106.0,0.002]
[1759255107199,0.3635,4106.2,4106.1,2.789]
[1759255107397,2.43540098,4106.1,4106.0,0.002]
[1759255107909,5.51110098,4106.1,4106.0,0.002]
[1759255108064,7.63635137,4106.1,4106.0,0.002]
[1759255108260,6.76759939,4106.1,4106.0,0.002]
[1759255108491,9.55659939,4106.1,4106.0,0.002]
[1759255108659,10.42535137,4106.1,4106.0,0.002]
[1759255109366,9.55659939,4106.1,4106.0,0.002]
[1759255113469,16.57759939,4106.1,4106.0,0.002]
[1759255118682,2.43551961,4105.9,4105.8,0.002]
[1759255119008,3.0817688,4105.9,4105.8,0.002]
[1759255119302,3.7574688,4105.9,4105.8,0.002]
[1759255120421,2.79901961,4105.9,4105.8,0.002]
[1759255120918,9.81701961,4105.9,4105.8,0.002]
[1759255121518,10.33812078,4105.9,4105.8,0.002]
[1759255121820,10.09622078,4105.9,4105.8,0.002]
[1759255121990,12.36511961,4105.9,4105.8,0.002]
[1759255122316,12.88625432,4105.9,4105.8,0.002]
[1759255122509,13.11255432,4105.9,4105.8,0.002]
[1759255125418,13.54635432,4105.9,4105.8,0.002]
[1759255126124,13.54635432,4105.9,4105.4,0.002]
[1759255126125,2.43575691,4105.5,4105.4,0.002]
[1759255126285,11.7491173,4105.5,4105.4,0.002]
[1759255126487,12.93035201,4105.5,4105.4,0.002]
[1759255126989,12.49655201,4105.5,4105.4,0.002]
[1759255127204,12.93035201,4105.5,4105.4,0.002]
[1759255127912,12.49655201,4105.5,4105.4,0.002]
[1759255128723,12.49655201,4105.5,4105.4,0.6711]
[1759255128724,2.95689162,4105.5,4105.4,0.6711]
[1759255128900,4.83575691,4105.5,4105.4,0.6711]
[1759255129817,6.52436039,4106.3,4105.4,0.6711]
[1759255129818,0.86875198,4106.5,4105.4,0.6711]
[1759255130001,0.001,4106.6,4105.5,0.69345756]
[1759255130203,0.001,4106.6,4105.6,5.24901207]
[1759255130400,0.001,4106.6,4105.7,0.61636759]
[1759255130630,2.43610502,4106.6,4105.7,1.28546759]
[1759255130926,0.001,4106.6,4105.8,0.6691]
[1759255131102,0.001,4106.6,4105.7,0.59201121]
[1759255131103,2.43616311,4106.6,4105.9,0.6691]
[1759255131304,0.001,4106.6,4106.0,0.6691]
[1759255131524,2.43614673,4106.6,4106.1,0.6691]
[1759255131729,2.43516896,4106.5,4106.2,2.789]
[1759255131928,2.43516896,4106.5,4106.3,0.6691]
[1759255132126,2.43522306,4106.4,4106.3,0.6691]
[1759255132633,6.52536039,4106.6,4105.9,0.4372]
[1759255132836,2.4,4106.5,4105.9,0.4372]
[1759255133003,2.43545217,4106.1,4105.9,3.2262]
[1759255133206,2.43545217,4106.1,4105.9,2.789]
[1759255133406,2.43545217,4106.1,4106.0,0.6691]
[1759255134663,2.92274692,4106.5,4106.0,0.6691]
[1759255134864,2.43530541,4106.3,4106.1,0.6691]
[1759255135056,2.43534167,4106.2,4105.9,2.789]
[1759255135664,2.43534167,4106.2,4106.0,0.6691]
[1759255136032,0.1216,4106.1,4106.0,0.2319]
[1759255136668,7.1396,4106.1,4106.0,0.6691]
[1759255137165,0.001,4106.6,4106.0,0.98864601]
[1759255137365,0.001,4106.6,4106.1,0.6691]
[1759255137566,0.001,4106.6,4106.2,2.789]
[1759255137772,0.001,4106.6,4106.2,3.2262]